bitfinex/quotes_ETHUSD_20220113
["timestamp","ask_amount","ask_price","bid_price","bid_amount"]
[1642114020219,10.49446815,3252.3,3252.2,0.00813685]
[1642114021618,7.456622,3252.3,3252.2,0.00813685]
[1642114022267,10.37841954,3252.3,3252.2,0.00813685]
[1642114022669,7.456622,3252.3,3252.2,0.00813685]
[1642114022871,10.36864818,3252.3,3252.2,0.00813685]
[1642114023071,11.36864818,3252.3,3252.2,0.00813685]
[1642114023266,11.36864818,3252.3,3251.9,0.0033576]
[1642114023267,5.5,3252.2,3251.9,0.0033576]
[1642114023466,0.024571,3252.0,3251.9,0.0033576]
[1642114026318,2.97472187,3252.0,3251.9,0.0033576]
[1642114026518,0.147571,3252.0,3251.9,0.0033576]
[1642114027719,3.10432802,3252.0,3251.9,0.0033576]
[1642114027919,0.147571,3252.0,3251.9,0.0033576]
[1642114028322,3.08319222,3252.0,3251.9,0.0033576]
[1642114029120,0.024571,3252.0,3251.9,0.0033576]
[1642114029772,2.9724398,3252.0,3251.9,0.0033576]
[1642114029968,2.95831783,3252.0,3251.9,0.0033576]
[1642114030169,4.08131783,3252.0,3251.9,0.0033576]
[1642114030774,6.1961115,3252.0,3251.9,0.0033576]
[1642114031972,3.26236467,3252.0,3251.9,0.0033576]
[1642114032771,6.26741357,3252.0,3251.9,0.0033576]
[1642114032973,3.26236467,3252.0,3251.9,0.0033576]
[1642114034634,4.7997206,3252.0,3251.9,0.0033576]
[1642114035238,5.2397206,3252.0,3251.7,0.42493323]
[1642114035439,7.214673,3251.8,3251.7,0.42493323]
[1642114035635,8.954673,3251.8,3251.7,0.42493323]
[1642114036037,9.254673,3251.8,3251.7,0.42493323]
[1642114036240,6.4,3251.7,3251.6,0.9798196]
[1642114036438,7.523,3251.7,3251.6,0.9798196]
[1642114036638,10.53482674,3251.7,3251.6,0.98323014]
[1642114036838,4.10108616,3251.7,3251.6,0.98323014]
[1642114037038,4.54108616,3251.7,3251.6,0.98323014]
[1642114037274,4.54108616,3251.7,3250.3,2.8459259]
[1642114037275,7.16929,3251.5,3250.3,2.8459259]
[1642114037479,7.16929,3251.5,3250.0,0.99421374]
[1642114037480,0.045463,3250.4,3250.0,0.99421374]
[1642114037678,0.045463,3250.1,3250.0,0.99421374]
[1642114037969,0.485463,3250.1,3250.0,0.95330851]
[1642114038370,0.485463,3250.1,3250.0,8.51e-06]
[1642114038371,7.235463,3250.1,3250.0,8.51e-06]
[1642114038571,6.5,3250.0,3249.4,5.25479611]
[1642114038773,2.945463,3249.5,3249.4,5.25479611]
[1642114038969,0.807563,3249.5,3249.1,5.20479611]
[1642114039170,3.295463,3249.2,3249.1,5.20479611]
[1642114039372,0.045463,3249.2,3249.1,5.20479611]
[1642114039571,1.345463,3249.2,3249.1,5.20479611]
[1642114039770,0.345463,3249.2,3249.1,5.20479611]
[1642114039971,7.135463,3249.2,3249.1,3.89659611]
[1642114040170,6.6,3249.1,3249.0,0.001]
[1642114040371,0.8631,3249.1,3249.0,0.001]
[1642114040571,6.55,3249.0,3248.2,7.88219416]
[1642114040770,6.55,3249.0,3248.2,6.68179416]
[1642114040771,4.445463,3248.3,3248.2,6.68179416]
[1642114041027,5.821263,3248.3,3248.2,6.44589416]
[1642114041222,6.421263,3248.3,3248.2,6.34589416]
[1642114041430,7.421263,3248.3,3248.2,5.04029416]
[1642114041621,7.421263,3248.3,3247.1,0.1231]
[1642114041822,7.421263,3248.3,3247.0,0.1231]
[1642114041823,8.27001,3248.2,3247.0,0.1231]
[1642114042021,8.71001,3248.2,3247.0,0.1231]
[1642114042222,8.71001,3248.2,3248.1,0.05516581]
[1642114042423,8.71001,3248.2,3248.1,0.00516581]
[1642114042820,2.21001,3248.2,3248.1,0.00516581]
[1642114043423,7.36001,3248.2,3248.1,0.00516581]
[1642114043624,7.36001,3248.2,3247.0,0.1231]
[1642114043625,1.5402504,3247.9,3247.0,0.1231]
[1642114043824,0.026878,3247.5,3246.5,9.8704]
[1642114044027,0.74,3247.5,3246.6,0.1231]
[1642114044224,0.785463,3247.5,3246.6,0.1231]
[1642114044696,1.085463,3247.5,3246.6,0.1231]
[1642114044884,0.785463,3247.5,3246.6,0.1231]
[1642114045084,1.785463,3247.5,3246.6,0.1231]
[1642114045286,0.785463,3247.5,3246.8,3.17314185]
[1642114045584,1.085463,3247.5,3246.8,3.17314185]
[1642114045786,2.085463,3247.5,3246.8,3.17314185]
[1642114046085,2.085463,3247.5,3246.9,2.37996548]
[1642114046285,2.208563,3247.5,3246.9,2.37996548]
[1642114046688,1.785463,3247.5,3246.9,2.37996548]
[1642114046884,1.74,3247.5,3246.9,2.37996548]
[1642114047085,0.74,3247.5,3246.9,2.37996548]
[1642114047386,0.74,3247.5,3246.6,1.58675194]
[1642114047387,2.085463,3247.5,3246.6,1.58675194]
[1642114047586,2.504763,3247.5,3246.6,1.58675194]
[1642114047785,2.4593,3247.5,3246.6,1.58675194]
[1642114047988,1.473571,3247.5,3246.6,1.58675194]
[1642114048187,2.473571,3247.5,3246.6,1.58675194]
[1642114048417,1.473571,3247.5,3246.6,1.58675194]
[1642114048617,1.754271,3247.5,3246.6,1.58675194]
[1642114048817,0.754271,3247.5,3246.7,0.1231]
[1642114049019,0.454271,3247.5,3246.7,0.1231]
[1642114049221,1.454271,3247.5,3246.7,0.1231]
[1642114049418,1.9478279,3247.5,3246.7,0.1231]
[1642114049819,1.9730759,3247.5,3246.7,0.1231]
[1642114050621,2.2730759,3247.5,3246.7,0.1231]
[1642114051319,5.4961759,3247.5,3246.4,0.1231]
[1642114051524,5.0730759,3247.5,3246.0,1.3363]
[1642114051725,6.0730759,3247.5,3246.0,1.3363]
[1642114052274,6.0730759,3247.5,3246.1,6.2]
[1642114052974,4.565248,3247.5,3246.1,6.2]
[1642114053174,6.83076611,3247.5,3246.1,6.2]
[1642114053576,7.13076611,3247.5,3246.0,0.1231]
[1642114053775,7.25386611,3247.5,3247.4,2.585908]
[1642114054174,7.55386611,3247.5,3247.4,2.585908]
[1642114054377,5.288348,3247.5,3247.4,2.585908]
[1642114054776,5.165248,3247.5,3247.4,2.585908]
[1642114054976,5.288348,3247.5,3247.4,2.585908]
[1642114055383,5.288348,3247.5,3247.4,2.485908]
[1642114055578,1.74597432,3247.0,3246.2,0.1231]
[1642114055779,0.015725,3246.9,3246.2,0.1231]
[1642114056028,5.6231,3247.4,3246.3,0.01023162]
[1642114056226,0.026878,3246.6,3246.4,0.1231]
[1642114056423,0.026878,3246.8,3246.3,0.01023162]
[1642114056626,0.010911,3246.7,3246.4,0.03229477]
[1642114056824,0.023396,3246.5,3246.1,0.1232]
[1642114057027,0.018809,3246.6,3246.2,0.00170527]
[1642114057224,0.01187,3246.6,3246.2,0.00170527]
[1642114057424,0.01187,3246.6,3246.1,0.0022737]
[1642114057825,0.024434,3246.4,3246.1,0.0022737]
[1642114058028,0.01187,3246.6,3246.1,0.0022737]
[1642114059532,0.01204784,3246.7,3246.0,0.0754737]
[1642114059771,0.026878,3246.2,3246.0,0.0754737]
[1642114059972,0.010911,3246.5,3245.9,5.033]
[1642114060173,0.010911,3246.9,3245.9,5.033]
[1642114060372,0.00170527,3246.4,3246.1,0.01253826]
[1642114060573,0.00397897,3246.8,3246.2,0.1232]
[1642114060774,0.00113685,3246.3,3246.2,0.1232]
[1642114060973,0.00341054,3246.7,3246.2,0.1232]
[1642114061176,0.023496,3247.3,3246.2,0.1232]
[1642114061177,0.00113685,3246.3,3246.2,6.9232]
[1642114061376,1.51451142,3247.8,3246.4,17.9]
[1642114061575,0.00568424,3247.1,3246.9,0.01215766]
[1642114061973,0.00397896,3247.0,3246.9,0.01215766]
[1642114062377,1.50360042,3247.9,3247.1,17.91886795]
[1642114062577,3.00720083,3248.3,3247.6,0.01239301]
[1642114062578,0.94680062,3248.1,3247.6,0.01239301]
[1642114062774,3.00720083,3248.3,3247.7,0.1231]
[1642114062775,1.50537172,3248.0,3247.7,0.1231]
[1642114063528,3.00720083,3248.5,3247.8,3.15]
[1642114063726,3.00720083,3248.5,3247.9,0.1231]
[1642114064023,0.39063767,3248.5,3248.0,3.80113685]
[1642114064223,3.77723296,3249.0,3248.2,5.8]
[1642114064425,0.1231,3249.7,3248.3,0.13557936]
[1642114064426,3.01614153,3249.2,3248.3,0.13557936]
[1642114064624,0.00231523,3249.2,3248.7,2.5]
[1642114064829,0.00170527,3249.1,3248.8,0.1231]
[1642114065026,0.00170527,3249.1,3248.8,1.1231]
[1642114065226,0.00113684,3249.0,3248.8,0.1231]
[1642114065825,0.00113684,3249.0,3248.7,0.1231]
[1642114066424,0.00113684,3249.0,3248.7,4.8458]
[1642114066625,0.00113684,3249.0,3248.7,8.40769042]
[1642114066827,0.00113684,3249.0,3248.8,1.0]
[1642114067026,0.00113684,3249.0,3248.8,1.3]
[1642114067274,0.00113684,3249.0,3248.8,2.06929]
[1642114067479,0.00113684,3249.0,3248.8,1.5385715]
[1642114067675,0.010911,3249.6,3248.8,0.76929]
[1642114067875,1.19779936,3250.6,3248.8,0.76929]
[1642114068175,0.00341054,3249.6,3248.9,0.016]
[1642114068576,1.4988717,3250.6,3248.8,0.7693]
[1642114068577,0.00284212,3249.5,3248.8,0.7693]
[1642114068976,0.0022737,3249.4,3248.8,0.7693]
[1642114069375,0.00170527,3249.3,3248.7,8.03505008]
[1642114069576,0.00170527,3249.3,3248.7,4.7387]
[1642114069778,0.00113685,3249.2,3248.8,0.00113684]
[1642114070176,0.57105793,3250.4,3248.8,0.00113684]
[1642114070677,0.76952,3249.9,3248.8,0.00113684]
[1642114070949,0.1231,3249.8,3248.8,0.00113684]
[1642114071137,0.00454739,3249.8,3248.8,0.00113684]
[1642114071336,0.12707897,3249.7,3248.8,0.00113684]
[1642114071539,0.00397897,3249.7,3248.8,0.00113684]
[1642114071736,0.1231,3249.6,3248.8,0.00113684]
[1642114071937,0.1231,3249.8,3248.8,0.00113684]
[1642114072139,0.00284212,3249.5,3248.8,0.00113684]
[1642114072439,0.0022737,3249.4,3248.8,0.00113684]
[1642114072740,0.1231,3249.8,3248.9,17.9]
[1642114072741,0.00170527,3249.3,3248.9,17.9]
[1642114072939,0.00170527,3249.3,3249.0,0.1231]
[1642114073137,0.00113685,3249.2,3248.9,0.1231]
[1642114073337,0.00113685,3249.2,3248.8,0.00113684]
[1642114073538,0.00284212,3249.5,3248.8,0.32247943]
[1642114073939,0.0022737,3249.4,3248.8,0.32247943]
[1642114074138,0.0022737,3249.4,3248.8,18.22247943]
[1642114074337,0.00170527,3249.3,3248.9,3.22450014]
[1642114074537,0.00170527,3249.3,3249.0,0.1231]
[1642114074768,0.1231,3250.1,3249.0,0.1231]
[1642114074769,0.00113685,3249.2,3249.0,0.1231]
[1642114075168,1.51190663,3249.6,3248.9,0.4231]
[1642114075670,0.00284212,3249.5,3248.9,0.4231]
[1642114075870,0.00284212,3249.5,3248.8,0.12423684]
[1642114076071,0.0022737,3249.4,3248.8,0.12423684]
[1642114076468,0.00170527,3249.3,3248.8,0.12423684]
[1642114076872,2.38892253,3250.0,3248.8,0.12423684]
[1642114076873,0.00113685,3249.2,3248.8,0.12423684]
[1642114077269,1.51190663,3249.6,3248.8,0.12423684]
[1642114077469,0.1231,3249.5,3248.8,0.12423684]
[1642114077671,0.12594212,3249.5,3248.8,0.12423684]
[1642114077869,0.0022737,3249.4,3248.8,0.12423684]
[1642114078074,0.0022737,3249.4,3248.8,18.02423684]
[1642114078270,0.00170527,3249.3,3248.9,0.02533713]
[1642114078535,0.00113685,3249.2,3249.0,0.1231]
[1642114078735,0.00113685,3249.2,3248.9,0.1231]
[1642114078935,0.0022737,3249.4,3248.9,0.1231]
[1642114079336,0.00170527,3249.3,3248.9,0.1231]
[1642114079735,0.00113685,3249.2,3248.9,0.1231]
[1642114080137,0.12594212,3249.5,3248.8,0.00113684]
[1642114080537,0.0022737,3249.4,3248.8,0.00113684]
[1642114081037,0.00170527,3249.3,3248.8,0.00113684]
[1642114081535,1.51190663,3249.4,3248.8,0.00113684]
[1642114081536,0.00113685,3249.2,3248.8,0.00113684]
[1642114081937,0.12480527,3249.3,3248.8,0.00113684]
[1642114082175,0.00170527,3249.3,3248.8,0.00113684]
[1642114082370,0.12423685,3249.2,3248.8,0.00113684]
[1642114082571,0.00113685,3249.2,3248.8,0.00113684]
[1642114082870,0.1231,3249.1,3248.8,0.00113684]
[1642114083070,0.1231,3249.2,3248.8,0.00113684]
[1642114083275,0.12423685,3249.2,3248.8,0.00113684]
[1642114083471,1.12423685,3249.2,3248.8,0.00113684]
[1642114083672,4.27982428,3249.2,3248.8,0.00113684]
[1642114084772,2.6436808,3249.1,3248.8,0.00113684]
[1642114086823,2.6436808,3249.1,3248.9,0.1231]
[1642114087225,2.6436808,3249.1,3248.8,0.00113684]
[1642114087226,10.12443552,3249.0,3248.1,0.19824259]
[1642114087424,6.55,3248.9,3247.8,2.37929092]
[1642114087624,3.10700496,3248.8,3248.2,0.00341054]
[1642114087824,0.77004,3248.5,3247.8,2.37929092]
[1642114088025,0.6,3248.1,3248.0,2.37929092]
[1642114088241,4.9131,3248.1,3248.0,2.37929092]
[1642114088428,1.1631,3248.1,3248.0,2.38042777]
[1642114088624,2.1631,3248.1,3248.0,2.38042777]
[1642114089028,3.65314,3248.1,3248.0,2.38042777]
[1642114089324,3.65314,3248.1,3248.0,0.00113685]
[1642114089774,6.2968208,3248.1,3248.0,0.00113685]
[1642114090275,7.0668508,3248.1,3247.1,0.00625266]
[1642114090473,0.76997,3247.7,3247.1,0.00625266]
[1642114091678,1.20993,3247.9,3247.1,0.00625266]
[1642114091875,2.6436808,3247.6,3247.1,0.00625266]
[1642114092074,0.3,3247.5,3247.1,0.00625266]
[1642114092675,3.1,3247.7,3247.1,0.00625266]
[1642114093525,2.6436808,3247.6,3247.1,0.00625266]
[1642114094825,2.6436808,3247.6,3247.1,0.12935266]
[1642114095225,2.6436808,3247.6,3247.2,0.00568424]
[1642114098189,2.6436808,3247.6,3247.1,0.07878424]
[1642114098588,2.6436808,3247.6,3247.1,1.37878424]
[1642114098589,0.00170527,3247.5,3247.1,1.37878424]
[1642114098988,0.00113685,3247.4,3247.1,1.37878424]
[1642114099488,0.00170527,3247.5,3247.1,1.37878424]
[1642114099888,0.00113685,3247.4,3247.1,1.37878424]
[1642114100289,0.00170527,3247.5,3247.1,19.27878424]
[1642114100490,0.00170527,3247.5,3247.1,17.97878424]
[1642114100689,0.00113685,3247.4,3247.1,17.97878424]
[1642114100931,0.00113685,3247.4,3247.1,18.57878424]
[1642114101128,0.00170527,3247.5,3247.1,18.57878424]
[1642114101335,0.00170527,3247.5,3247.1,19.34849424]
[1642114101531,0.00113685,3247.4,3247.1,1.44849424]
[1642114101731,0.00113685,3247.4,3247.1,19.04849424]
[1642114101933,0.00170527,3247.5,3247.2,0.20844272]
[1642114102138,0.00170527,3247.5,3247.3,0.1231]
[1642114102431,0.00113685,3247.4,3247.3,0.1231]
[1642114102632,0.00113685,3247.4,3247.3,2.7231]
[1642114102832,0.00113685,3247.4,3247.3,3.0231]
[1642114103036,0.00113685,3247.4,3247.3,0.4231]
[1642114103635,0.00113685,3247.4,3247.3,18.3231]
[1642114104673,0.00113685,3247.4,3247.3,18.2]
[1642114105477,0.00113685,3247.4,3247.3,18.40844272]
[1642114106077,0.00113685,3247.4,3247.3,18.10844272]
[1642114108080,0.00113685,3247.4,3247.3,0.20844272]
[1642114109131,0.00113685,3247.4,3247.1,1.0]
[1642114109532,0.00113685,3247.4,3247.0,4.6674]
[1642114109929,0.00113685,3247.4,3247.0,4.87584272]
[1642114110731,0.00113685,3247.4,3247.0,23.07584272]
[1642114110930,0.00113685,3247.4,3247.1,1.0]
[1642114111129,0.00113685,3247.4,3247.1,1.1231]
[1642114111734,0.00113685,3247.4,3247.1,1.33154272]
[1642114112374,0.00113685,3247.4,3247.1,1.20844272]
[1642114113573,0.00113685,3247.4,3247.1,0.20844272]
[1642114114881,0.00113685,3247.4,3247.2,17.9]
[1642114115075,0.00113685,3247.4,3247.2,18.2]
[1642114115274,0.00113685,3247.4,3247.2,0.3]
[1642114115477,0.00113685,3247.4,3247.2,18.2]
[1642114115675,0.00113685,3247.4,3247.2,17.9]
[1642114116320,0.00113685,3247.4,3247.2,18.632346]
[1642114116723,0.00113685,3247.4,3247.2,18.641831]
[1642114116925,0.00113685,3247.4,3247.3,4.15]
[1642114117123,0.00113685,3247.4,3247.3,4.5731]
[1642114117325,0.00113685,3247.4,3247.3,4.78154272]
[1642114118124,0.00113685,3247.4,3247.3,22.64424272]
[1642114118324,0.00113685,3247.4,3247.3,22.94424272]
[1642114118523,0.00113685,3247.4,3247.3,22.64424272]
[1642114118926,0.00113685,3247.4,3247.3,22.65642016]
[1642114119130,3.1,3247.7,3247.5,17.8627]
[1642114119325,3.1,3247.7,3247.6,21.1358]
[1642114119529,3.1,3247.7,3247.6,22.4358]
[1642114120373,3.1,3247.7,3247.6,23.2053]
[1642114120573,3.1,3247.7,3247.6,23.41374272]
[1642114121174,0.1231,3249.0,3247.8,17.8627]
[1642114121377,0.1231,3249.0,3248.2,0.7694041]
[1642114121575,0.00852635,3248.9,3248.0,6.6632]
[1642114121775,0.00852635,3248.9,3248.1,17.8627]
[1642114122078,0.00795793,3248.8,3248.2,1.06941]
[1642114122476,0.0073895,3248.7,3248.2,1.06941]
[1642114122875,0.00682108,3248.6,3248.2,1.06941]
[1642114123276,0.00625266,3248.5,3248.2,1.06941]
[1642114123530,0.00625266,3248.5,3248.2,18.96941]
[1642114123727,0.00568423,3248.4,3248.2,19.26941]
[1642114123926,2.64974136,3248.4,3248.2,19.26941]
[1642114124125,0.00511581,3248.3,3248.2,19.26941]
[1642114124824,2.64917294,3248.3,3248.2,18.5]
[1642114125624,2.64917294,3248.3,3248.2,0.3]
[1642114125823,2.64917294,3248.3,3248.1,1.6]
[1642114126024,2.64917294,3248.3,3248.1,0.6]
[1642114126223,0.00454739,3248.2,3248.1,0.3]
[1642114126424,0.00454739,3248.2,3248.0,5.7244]
[1642114126823,0.00397896,3248.1,3248.0,5.7244]
[1642114127681,0.00397896,3248.1,3248.0,5.4244]
[1642114127880,0.00397896,3248.1,3248.0,5.1244]
[1642114128080,2.64803609,3248.1,3248.0,5.1244]
[1642114128880,2.64803609,3248.1,3247.7,0.009093]
[1642114129380,0.00341054,3248.0,3247.7,0.009093]
[1642114129783,0.00284212,3247.9,3247.7,0.009093]
[1642114130080,0.00227369,3247.8,3247.7,19.34071946]
[1642114130280,0.00227369,3247.8,3247.7,21.00283466]
[1642114130483,0.00227369,3247.8,3247.7,2.33334946]
[1642114130682,0.00227369,3247.8,3247.7,20.23334946]
[1642114130927,0.00227369,3247.8,3247.7,1.56381946]
[1642114131122,0.00227369,3247.8,3247.7,2.00381946]
[1642114131325,0.00227369,3247.8,3247.7,1.88071946]
[1642114132222,0.00227369,3247.8,3247.7,1.449093]
[1642114132624,0.00227369,3247.8,3247.7,1.0]
[1642114132823,3.10227369,3247.8,3247.7,1.3]
[1642114133025,3.10227369,3247.8,3247.7,2.36949]
[1642114133224,3.10227369,3247.8,3247.7,20.26949]
[1642114133429,3.10227369,3247.8,3247.7,2.36949]
[1642114133831,3.10227369,3247.8,3247.7,1.6]
[1642114134430,3.10227369,3247.8,3247.7,1.7231]
[1642114134878,3.10227369,3247.8,3247.7,2.03162646]
[1642114137175,3.10227369,3247.8,3247.7,1.03162646]
[1642114137579,3.10227369,3247.8,3247.7,0.6]
[1642114137776,3.10227369,3247.8,3247.7,0.3]
[1642114137975,3.10227369,3247.8,3247.6,0.309093]
[1642114138175,3.10227369,3247.8,3247.6,0.009093]
[1642114138435,0.00170527,3247.7,3247.5,0.43162646]
[1642114138825,0.00113685,3247.6,3247.5,0.43162646]
[1642114139226,0.00113685,3247.6,3247.5,18.34220446]
[1642114139626,0.00113685,3247.6,3247.5,0.74220446]
[1642114139827,0.00113685,3247.6,3247.5,1.74220446]
[1642114140232,0.00113685,3247.6,3247.5,4.14220446]
[1642114140429,0.00113685,3247.6,3247.5,1.74220446]
[1642114140828,0.00113685,3247.6,3247.4,20.76338196]
[1642114141028,0.00113685,3247.6,3247.4,20.64028196]
[1642114141627,0.00113685,3247.6,3247.5,5.38162646]
[1642114142027,0.00113685,3247.6,3247.5,5.68162646]
[1642114142274,0.00113685,3247.6,3247.5,6.68162646]
[1642114146140,0.00113685,3247.6,3247.5,1.73162646]
[1642114147945,0.00113685,3247.6,3247.5,1.3]
[1642114148141,0.00113685,3247.6,3247.5,5.4]
[1642114149045,0.00113685,3247.6,3247.5,6.16956]
[1642114149343,0.00113685,3247.6,3247.5,5.4]
[1642114149543,0.00113685,3247.6,3247.5,1.3]
[1642114150176,0.00113685,3247.6,3247.5,0.3]
[1642114150376,0.00113685,3247.6,3247.4,1.3]
[1642114151177,3.09255688,3247.8,3247.5,3.15]
[1642114151376,3.09255688,3247.8,3247.4,1.3]
[1642114154831,3.09255688,3247.8,3247.4,1.0]
[1642114155230,3.09255688,3247.8,3247.2,0.009485]
[1642114155231,3.09255688,3247.8,3247.2,1.0]
[1642114155429,3.09255688,3247.8,3246.8,0.009093]
[1642114155630,3.09255688,3247.8,3247.3,0.00170528]
[1642114156028,3.11627565,3247.8,3247.3,0.00170528]
[1642114156228,3.11627565,3247.8,3247.0,0.00341055]
[1642114158075,3.11627565,3247.8,3246.9,0.00397897]
[1642114159276,3.11627565,3247.8,3246.9,0.12707897]
[1642114159675,3.11627565,3247.8,3247.0,0.00341055]
[1642114160934,0.117,3247.7,3247.0,0.00341055]
[1642114161124,0.11032436,3247.7,3247.0,0.00341055]
[1642114161325,0.07508927,3247.7,3247.0,0.00341055]
[1642114161724,0.07508927,3247.7,3246.9,0.00397897]
[1642114161924,3.1232219,3247.8,3246.9,0.00397897]
[1642114162125,0.1231,3247.7,3246.9,0.00397897]
[1642114162525,0.1231,3247.7,3246.9,0.77369367]
[1642114162925,0.1231,3247.7,3247.0,0.00341055]
[1642114163325,0.1231,3247.7,3247.0,3.5]
[1642114163528,3.1232219,3247.8,3246.9,0.00397897]
[1642114163726,3.1232219,3247.8,3247.1,0.00284212]
[1642114163930,3.1232219,3247.8,3246.9,0.00397897]
[1642114164128,3.1232219,3247.8,3246.9,0.60397897]
[1642114164689,3.1232219,3247.8,3247.0,0.00341055]
[1642114164889,3.1232219,3247.8,3247.0,0.12651055]
[1642114165293,3.1232219,3247.8,3247.1,0.00284212]
[1642114165889,3.1232219,3247.8,3247.0,0.00341055]
[1642114167690,3.1232219,3247.8,3247.1,0.012245]
[1642114168090,3.1232219,3247.8,3247.2,0.0022737]
[1642114168933,3.1232219,3247.8,3247.2,0.0115847]
[1642114169133,3.1232219,3247.8,3247.2,0.009311]
[1642114169634,3.1232219,3247.8,3247.0,0.00341055]
[1642114169834,3.1232219,3247.8,3247.1,0.009093]
[1642114170035,3.1232219,3247.8,3247.0,0.00341055]
[1642114170235,3.1232219,3247.8,3247.2,0.0022737]
[1642114170435,3.1232219,3247.8,3247.0,0.00341055]
[1642114171036,3.1232219,3247.8,3247.1,0.012384]
[1642114171240,3.1232219,3247.8,3247.2,0.1231]
[1642114171437,3.1232219,3247.8,3247.2,0.0022737]
[1642114173179,3.1232219,3247.8,3247.3,0.01739788]
[1642114173379,3.1232219,3247.8,3247.2,3.35874452]
[1642114173581,3.1232219,3247.8,3247.4,0.00113685]
[1642114174681,3.1232219,3247.8,3247.4,0.12423685]
[1642114174882,3.1232219,3247.8,3247.4,3.30529927]
[1642114175082,3.1232219,3247.8,3247.4,0.73424985]
[1642114175380,3.1232219,3247.8,3247.5,1.0]
[1642114175582,3.1232219,3247.8,3247.4,0.73424985]
[1642114176231,3.13607314,3247.8,3247.4,0.13424985]
[1642114176432,3.13607314,3247.8,3247.4,0.00113685]
[1642114177629,3.13607314,3247.8,3247.4,1.00113685]
[1642114177831,3.13607314,3247.8,3247.5,0.014009]
[1642114178029,3.13607314,3247.8,3247.5,0.137109]
[1642114178229,3.13607314,3247.8,3247.5,1.137109]
[1642114179230,3.13607314,3247.8,3247.5,1.9066786]
[1642114179678,3.13607314,3247.8,3247.5,19.8066786]
[1642114179881,3.13607314,3247.8,3247.5,20.4531486]
[1642114181180,3.13607314,3247.8,3247.5,1.014009]
[1642114182281,3.13607314,3247.8,3247.7,3.520212]
[1642114182481,3.13607314,3247.8,3247.7,0.020212]
[1642114182681,3.13720998,3247.8,3247.7,0.020212]
[1642114186750,3.13720998,3247.8,3247.7,2.970212]
[1642114187182,3.13720998,3247.8,3247.7,3.970212]
[1642114187383,3.13720998,3247.8,3247.7,20.870212]
[1642114187584,3.13720998,3247.8,3247.7,21.870212]
[1642114187784,3.13720998,3247.8,3247.7,1.020212]
[1642114187983,3.13720998,3247.8,3247.7,0.020212]
[1642114188685,3.13720998,3247.8,3247.7,1.020212]
[1642114189086,3.13720998,3247.8,3247.7,0.020212]
[1642114189688,3.13720998,3247.8,3247.7,3.420212]
[1642114190087,3.13720998,3247.8,3247.7,1.020212]
[1642114190287,3.13720998,3247.8,3247.7,0.020212]
[1642114193733,3.13720998,3247.8,3247.7,3.070212]
[1642114194134,3.13720998,3247.8,3247.7,4.070212]
[1642114195488,3.11349121,3247.8,3247.7,4.070212]
[1642114195686,3.09369372,3247.8,3247.7,4.83468874]
[1642114195886,3.09369372,3247.8,3247.7,4.370212]
[1642114196287,3.09369372,3247.8,3247.7,22.270212]
[1642114197288,3.09369372,3247.8,3247.7,1.320212]
[1642114199034,3.09369372,3247.8,3247.7,0.320212]
[1642114199236,3.09369372,3247.8,3247.7,1.320212]
[1642114199635,3.09369372,3247.8,3247.7,21.270212]
[1642114199835,3.09369372,3247.8,3247.7,22.270212]
[1642114200236,3.09369372,3247.8,3247.7,1.320212]
[1642114200635,3.09369372,3247.8,3247.7,1.3]
[1642114201035,3.09369372,3247.8,3247.7,1.020057]
[1642114201235,3.09483057,3247.8,3247.7,0.020057]
[1642114201636,3.09483057,3247.8,3247.7,0.009351]
[1642114202387,3.09483057,3247.8,3247.7,0.01768]
[1642114204582,3.09483057,3247.8,3247.7,3.36768]
[1642114204786,3.09483057,3247.8,3247.7,4.66768]
[1642114205185,3.09483057,3247.8,3247.7,22.56768]
[1642114206839,3.09483057,3247.8,3247.7,4.66768]
[1642114207837,3.09483057,3247.8,3247.7,22.56768]
[1642114208036,3.09483057,3247.8,3247.7,4.66768]
[1642114208436,3.09483057,3247.8,3247.7,25.78404224]
[1642114208637,3.09483057,3247.8,3247.7,25.85387235]
[1642114209036,3.09483057,3247.8,3247.7,28.28625671]
[1642114209892,3.09483057,3247.8,3247.7,28.72625671]
[1642114212498,2.61834528,3247.8,3247.7,28.72625671]
[1642114212701,0.1231,3249.4,3247.9,0.048865]
[1642114212901,0.1231,3249.4,3248.6,0.786185]
[1642114213099,0.00852635,3249.3,3248.6,1.06931]
[1642114213303,0.1231,3249.2,3248.6,0.6]
[1642114213537,0.00795793,3249.2,3248.6,0.6]
[1642114213738,0.1231,3249.4,3248.6,0.6]
[1642114213739,0.00738951,3249.1,3248.7,17.9]
[1642114213939,0.00738951,3249.1,3248.7,18.0231]
[1642114214138,1.50080202,3249.8,3249.0,3.789606]
[1642114214338,1.50080202,3249.8,3249.4,0.039606]
[1642114214839,1.50080202,3250.0,3249.4,0.479606]
[1642114215039,1.50080202,3250.0,3249.3,1.8381214]
[1642114215243,0.123,3249.9,3249.4,1.0]
[1642114215439,0.123,3249.9,3249.0,1.3]
[1642114215639,0.073,3249.9,3249.0,0.3]
[1642114215841,0.073,3249.9,3249.1,17.9]
[1642114216038,1.50080202,3250.0,3249.2,1.0]
[1642114216438,0.01193689,3249.9,3248.9,2.4615]
[1642114216641,0.01193689,3249.9,3249.1,0.769185]
[1642114216939,0.123,3250.3,3249.2,0.3]
[1642114216940,0.01136847,3249.8,3249.2,0.3]
[1642114217180,0.01136847,3249.8,3248.9,2.4615]
[1642114217181,0.01136847,3249.8,3249.0,1.0]
[1642114217381,0.01080005,3249.7,3248.9,2.4615]
[1642114217785,0.01023162,3249.6,3248.9,20.3615]
[1642114217980,0.01023162,3249.6,3249.0,0.87150783]
[1642114218182,0.0096632,3249.5,3249.0,1.855034]
[1642114218580,0.123,3250.3,3249.0,1.855034]
[1642114218581,0.00909478,3249.4,3249.0,1.855034]
[1642114218984,0.00852635,3249.3,3249.0,1.0]
[1642114219181,0.00852635,3249.3,3248.9,2.4615]
[1642114219387,0.00795793,3249.2,3248.9,20.3615]
[1642114219781,0.1231,3249.8,3248.9,20.3615]
[1642114219782,0.00738951,3249.1,3248.9,20.3615]
[1642114220182,0.00682108,3249.0,3248.9,20.3615]
[1642114220584,0.00682108,3249.0,3248.9,2.5846]
[1642114220783,0.00682108,3249.0,3248.9,20.9246]
[1642114222534,0.00682108,3249.0,3248.9,21.77974791]
[1642114225983,0.00682108,3249.0,3248.9,21.91191568]
[1642114225984,3.10682108,3249.0,3248.9,21.91191568]